fUST/lending_fUST_20250722
["ID","MTS","AMOUNT","RATE_DAILY","PERIOD"]
[373979611,1753168234294,-460.0,0.00016704,2]
[373979613,1753168234304,-460.0,0.00016704,2]
[373979627,1753168234440,-460.0,0.00016704,2]
[373979629,1753168234455,-445.44057393,0.00016704,2]
[373979631,1753168234466,-460.0,0.00016704,2]
[373979633,1753168234476,-460.0,0.00016704,2]
[373979635,1753168234487,-460.0,0.00016704,2]
[373979638,1753168234497,-460.0,0.00016704,2]
[373979640,1753168234506,-460.0,0.00016704,2]
[373979642,1753168234516,-460.0,0.00016704,2]
[373979644,1753168234527,-500.0,0.00016704,2]
[373979645,1753168234538,-500.0,0.00016704,2]
[373979647,1753168234547,-317.6,0.00016704,2]
[373979650,1753168234558,-460.0,0.00016705,2]
[373979652,1753168234567,-460.0,0.00016705,2]
[373979654,1753168234577,-460.0,0.00016705,2]
[373979656,1753168234587,-460.0,0.00016705,2]
[373979658,1753168234598,-220.21741407,0.00016705,2]
[373979660,1753168234610,-460.0,0.00016705,2]
[373979662,1753168234620,-460.0,0.00016705,2]
[373979664,1753168234629,-467.41560491,0.00016705,2]
[373979666,1753168234639,-460.0,0.00016705,2]
[373979668,1753168234648,-460.0,0.00016705,2]
[373979670,1753168234659,-460.0,0.00016705,2]
[373979672,1753168234668,-460.0,0.00016705,2]
[373979674,1753168234678,-460.0,0.00016705,2]
[373979676,1753168234688,-460.0,0.00016705,2]
[373979678,1753168234700,-590.67,0.00016705,2]
[373979680,1753168234709,-460.0,0.00016705,2]
[373979682,1753168234719,-193.39,0.00016705,2]
[373979684,1753168234728,-460.0,0.00016705,2]
[373979686,1753168234738,-460.0,0.00016705,2]
[373979688,1753168234747,-1709.61,0.00016705,2]
[373979690,1753168234757,-461.30853,0.00016706,2]
[373979692,1753168234766,-457.14844608,0.00016706,2]
[373979694,1753168234776,-652.05,0.00016706,2]
[373979696,1753168234786,-785.42,0.00016706,2]
[373979698,1753168234796,-460.0,0.00016706,2]
[373979700,1753168234805,-1666.11,0.00016706,2]
[373979702,1753168234815,-541.74,0.00016707,2]
[373979704,1753168234824,-460.0,0.00016707,2]
[373979706,1753168234835,-2531.13,0.00016707,2]
[373979708,1753168234845,-896.2,0.00016708,2]
[373979710,1753168234854,-460.0,0.00016708,2]
[373979712,1753168234864,-160.33,0.00016966,3]
[373979714,1753168234873,-481.01,0.00016966,3]
[373979717,1753168234884,-460.0,0.00016975,2]
[373979719,1753168234894,-1616.13,0.00016975,2]
[373979721,1753168234903,-460.0,0.00016975,2]
[373979723,1753168234913,-460.0,0.00016975,2]
[373979725,1753168234922,-460.0,0.00016975,2]
[373979727,1753168234931,-1262.31,0.00016975,2]
[373979729,1753168234940,-563.19546863,0.00016975,2]
[373979731,1753168234952,-460.0,0.00016975,2]
[373979733,1753168234962,-460.0,0.00016975,2]
[373979735,1753168234971,-460.0,0.00016975,2]
[373979737,1753168234980,-460.0,0.00016975,2]
[373979739,1753168234990,-514.74,0.00016975,2]
[373979741,1753168234999,-460.0,0.00016975,2]
[373979743,1753168235008,-460.0,0.00016975,2]
[373979745,1753168235018,-460.0,0.00016975,2]
[373979747,1753168235027,-460.0,0.00016975,2]
[373979749,1753168235036,-460.0,0.00016975,2]
[373979751,1753168235045,-460.0,0.00016975,2]
[373979753,1753168235055,-460.0,0.00016975,2]
[373979755,1753168235064,-858.13,0.00016975,2]
[373979757,1753168235073,-460.0,0.00016975,2]
[373979759,1753168235082,-215.11488174,0.00016975,2]
[373979761,1753168235092,-460.0,0.00016976,2]
[373979763,1753168235101,-460.0,0.00016976,2]
[373979765,1753168235111,-460.0,0.00016976,2]
[373979767,1753168235120,-460.0,0.00016976,2]
[373979768,1753168235128,-460.0,0.00016976,2]
[373979770,1753168235138,-460.0,0.00016976,2]
[373979772,1753168235147,-460.0,0.00016976,2]
[373979775,1753168235157,-460.0,0.00016976,2]
[373979776,1753168235166,-460.0,0.00016976,2]
[373979778,1753168235176,-503.7560223,0.00016976,2]
[373979780,1753168235186,-460.0,0.00016976,2]
[373979782,1753168235197,-460.0,0.00016976,2]
[373979784,1753168235207,-460.0,0.00016976,2]
[373979787,1753168235217,-460.0,0.00016976,2]
[373979788,1753168235227,-460.0,0.00016976,2]
[373979790,1753168235237,-460.0,0.00016976,2]
[373979792,1753168235246,-264.66,0.00016976,2]
[373979794,1753168235255,-460.0,0.00016976,2]
[373979796,1753168235265,-460.0,0.00016976,2]
[373979798,1753168235275,-460.0,0.00016976,2]
[373979800,1753168235284,-460.0,0.00016976,2]
[373979802,1753168235294,-460.0,0.00016976,2]
[373979804,1753168235303,-460.0,0.00016976,2]
[373979806,1753168235313,-460.0,0.00016976,2]
[373979808,1753168235322,-460.0,0.00016976,2]
[373979810,1753168235332,-342.08,0.00016976,2]
[373979812,1753168235342,-460.0,0.00016976,2]
[373979814,1753168235351,-460.0,0.00016976,2]
[373979816,1753168235361,-460.0,0.00016976,2]
[373979818,1753168235376,-460.0,0.00016976,2]
[373979820,1753168235396,-460.0,0.00016976,2]
[373979822,1753168235406,-460.0,0.00016976,2]
[373979824,1753168235416,-460.0,0.00016976,2]
[373979826,1753168235426,-555.34,0.00016976,2]
[373979828,1753168235436,-579.75824413,0.00016976,2]
[373979830,1753168235450,-460.0,0.00016976,2]
[373979832,1753168235459,-460.0,0.00016976,2]
[373979834,1753168235469,-460.0,0.00016976,2]
[373979836,1753168235479,-460.0,0.00016976,2]
[373979838,1753168235489,-460.0,0.00016977,2]
[373979840,1753168235498,-460.0,0.00016977,2]
[373979842,1753168235508,-460.0,0.00016977,2]
[373979844,1753168235519,-254.29528754,0.00016977,2]
[373979846,1753168235531,-460.0,0.00016977,2]
[373979848,1753168235541,-460.0,0.00016977,2]
[373979850,1753168235551,-460.0,0.00016977,2]
[373979852,1753168235560,-460.0,0.00016977,2]
[373979854,1753168235572,-460.0,0.00016977,2]
[373979856,1753168235581,-461.93658956,0.00016977,2]
[373979858,1753168235590,-460.0,0.00016977,2]
[373979860,1753168235600,-1197.65,0.00016977,2]
[373979862,1753168235612,-460.0,0.00016977,2]
[373979863,1753168235621,-460.0,0.00016977,2]
[373979865,1753168235631,-690.03,0.00016977,2]
[373979867,1753168235640,-460.0,0.00016977,2]
[373979869,1753168235650,-1070.51,0.00016977,2]
[373979871,1753168235659,-460.0,0.00016977,2]
[373979873,1753168235668,-460.0,0.00016977,2]
[373979875,1753168235677,-460.0,0.00016977,2]
[373979877,1753168235687,-460.0,0.00016977,2]
[373979879,1753168235700,-460.0,0.00016977,2]
[373979881,1753168235710,-460.0,0.00016977,2]
[373979883,1753168235719,-460.0,0.00016977,2]
[373979885,1753168235728,-744.08,0.00016977,2]
[373979887,1753168235738,-499.72,0.00016977,2]
[373979889,1753168235748,-460.0,0.00016977,2]
[373979891,1753168235757,-460.0,0.00016977,2]
[373979893,1753168235767,-460.0,0.00016977,2]
[373979895,1753168235776,-460.0,0.00016977,2]
[373979897,1753168235786,-460.0,0.00016977,2]
[373979898,1753168235795,-460.0,0.00016977,2]
[373979900,1753168235804,-841.45,0.00016977,2]
[373979902,1753168235813,-460.0,0.00016978,2]
[373979904,1753168235823,-460.0,0.00016978,2]
[373979906,1753168235832,-460.0,0.00016978,2]
[373979908,1753168235842,-460.0,0.00016978,2]
[373979910,1753168235851,-196.81233458,0.00016978,2]
[373979912,1753168235861,-460.0,0.00016978,2]
[373979914,1753168235871,-460.0,0.00016978,2]
[373979916,1753168235880,-460.0,0.00016978,2]
[373979918,1753168235889,-460.0,0.00016978,2]
[373979920,1753168235899,-470.44305965,0.00016978,2]
[373979922,1753168235910,-460.0,0.00016978,2]
[373979924,1753168235922,-460.0,0.00016978,2]
[373979927,1753168235936,-460.0,0.00016978,2]
[373979929,1753168235950,-193.07,0.00016978,2]
[373979931,1753168235962,-460.0,0.00016978,2]
[373979933,1753168235974,-485.91347824,0.00016978,2]
[373979935,1753168235984,-460.0,0.00016978,2]
[373979937,1753168235995,-460.0,0.00016978,2]
[373979939,1753168236006,-464.31808404,0.00016978,2]
[373979942,1753168236020,-460.0,0.00016979,2]
[373979944,1753168236032,-460.0,0.00016979,2]
[373979946,1753168236043,-460.0,0.00016979,2]
[373979948,1753168236055,-581.81939396,0.00016979,2]
[373979951,1753168236067,-460.0,0.00016979,2]
[373979953,1753168236079,-460.0,0.00016979,2]
[373979955,1753168236091,-394.62973813,0.00016979,2]
[373979957,1753168236102,-1709.61,0.00016979,2]
[373979959,1753168236114,-652.05,0.0001698,2]
[373979961,1753168236126,-785.42,0.0001698,2]
[373979964,1753168236138,-460.0,0.0001698,2]
[373979966,1753168236150,-1666.11,0.0001698,2]
[373979968,1753168236162,-541.74,0.00016981,2]
[373979970,1753168236174,-346.6,0.00016981,2]
[373979972,1753168236185,-2531.13,0.00016981,2]
[373979974,1753168236199,-896.2,0.00016982,2]
[373979977,1753168236210,-460.0,0.00016982,2]
[373979979,1753168236223,-1616.13,0.00017249,2]
[373979981,1753168236235,-460.0,0.00017249,2]
[373979983,1753168236246,-460.0,0.00017249,2]
[373979985,1753168236257,-460.0,0.00017249,2]
[373979987,1753168236269,-1262.31,0.00017249,2]
[373979989,1753168236280,-460.0,0.00017249,2]
[373979992,1753168236292,-460.0,0.00017249,2]
[373979994,1753168236306,-460.0,0.00017249,2]
[373979996,1753168236317,-155.0,0.00017249,2]
[373979998,1753168236328,-514.74,0.00017249,2]
[373980000,1753168236339,-513.35514288,0.00017249,2]
[373980002,1753168236349,-460.0,0.00017249,2]
[373980004,1753168236361,-460.0,0.00017249,2]
[373980006,1753168236373,-460.0,0.00017249,2]
[373980008,1753168236384,-460.0,0.00017249,2]
[373980010,1753168236396,-460.0,0.00017249,2]
[373980013,1753168236408,-460.0,0.00017249,2]
[373980015,1753168236420,-858.13,0.00017249,2]
[373980017,1753168236432,-460.0,0.00017249,2]
[373980019,1753168236446,-460.0,0.0001725,2]
[373980021,1753168236457,-460.0,0.0001725,2]
[373980023,1753168236468,-460.0,0.0001725,2]
[373980026,1753168236480,-460.0,0.0001725,2]
[373980028,1753168236492,-460.0,0.0001725,2]
[373980030,1753168236503,-460.0,0.0001725,2]
[373980032,1753168236515,-460.0,0.0001725,2]
[373980034,1753168236529,-460.0,0.0001725,2]
[373980036,1753168236542,-572.94459415,0.0001725,2]
[373980039,1753168236552,-235.04,0.0001725,2]
[373980041,1753168236563,-460.0,0.0001725,2]
[373980043,1753168236572,-460.0,0.0001725,2]
[373980044,1753168236582,-460.0,0.0001725,2]
[373980047,1753168236593,-460.0,0.0001725,2]
[373980049,1753168236604,-601.45,0.0001725,2]
[373980051,1753168236615,-460.0,0.0001725,2]
[373980053,1753168236628,-460.0,0.0001725,2]
[373980055,1753168236641,-460.0,0.0001725,2]
[373980057,1753168236653,-460.0,0.0001725,2]
[373980060,1753168236665,-460.0,0.0001725,2]
[373980062,1753168236677,-460.0,0.0001725,2]
[373980064,1753168236687,-537.36,0.0001725,2]
[373980066,1753168236699,-460.0,0.0001725,2]
[373980068,1753168236709,-460.0,0.0001725,2]
[373980070,1753168236719,-460.0,0.0001725,2]
[373980072,1753168236730,-460.0,0.0001725,2]
[373980074,1753168236741,-555.34,0.0001725,2]
[373980076,1753168236753,-460.0,0.0001725,2]
[373980078,1753168236763,-460.0,0.0001725,2]
[373980080,1753168236773,-460.0,0.0001725,2]
[373980082,1753168236783,-460.0,0.00017251,2]
[373980084,1753168236793,-460.0,0.00017251,2]
[373980086,1753168236804,-460.0,0.00017251,2]
[373980088,1753168236815,-460.0,0.00017251,2]
[373980090,1753168236826,-460.0,0.00017251,2]
[373980092,1753168236837,-460.0,0.00017251,2]
[373980094,1753168236847,-1197.65,0.00017251,2]
[373980096,1753168236857,-460.0,0.00017251,2]
[373980098,1753168236867,-460.0,0.00017251,2]
[373980100,1753168236878,-690.03,0.00017251,2]
[373980102,1753168236889,-460.0,0.00017251,2]
[373980104,1753168236899,-1070.51,0.00017251,2]
[373980106,1753168236910,-312.12986255,0.00017251,2]
[373980108,1753168236921,-460.0,0.00017251,2]
[373980111,1753168236931,-460.0,0.00017251,2]
[373980113,1753168236942,-460.0,0.00017251,2]
[373980115,1753168236954,-460.0,0.00017251,2]
[373980117,1753168236964,-460.0,0.00017251,2]
[373980119,1753168236974,-460.0,0.00017251,2]
[373980121,1753168236984,-744.08,0.00017251,2]
[373980123,1753168236995,-499.72,0.00017251,2]
[373980125,1753168237006,-460.0,0.00017251,2]
[373980127,1753168237016,-460.0,0.00017251,2]
[373980129,1753168237027,-460.0,0.00017251,2]
[373980131,1753168237037,-460.0,0.00017251,2]
[373980133,1753168237047,-460.0,0.00017251,2]
[373980135,1753168237058,-841.45,0.00017251,2]
[373980137,1753168237068,-460.0,0.00017252,2]
[373980139,1753168237081,-460.0,0.00017252,2]
[373980141,1753168237091,-341.61902487,0.00017252,2]
[373980143,1753168237102,-460.0,0.00017252,2]
[373980145,1753168237113,-460.0,0.00017252,2]
[373980147,1753168237124,-261.80339515,0.00017252,2]
[373980149,1753168237135,-460.0,0.00017252,2]
[373980151,1753168237145,-460.0,0.00017252,2]
[373980153,1753168237156,-460.0,0.00017252,2]
[373980155,1753168237167,-460.0,0.00017252,2]
[373980157,1753168237177,-460.0,0.00017252,2]
[373980159,1753168237188,-460.0,0.00017253,2]
[373980161,1753168237199,-460.0,0.00017253,2]
[373980163,1753168237210,-460.0,0.00017253,2]
[373980165,1753168237221,-460.0,0.00017253,2]
[373980167,1753168237231,-1709.61,0.00017253,2]
[373980169,1753168237241,-652.05,0.00017254,2]
[373980171,1753168237251,-785.42,0.00017254,2]
[373980174,1753168237262,-460.0,0.00017254,2]
[373980176,1753168237273,-1666.11,0.00017254,2]
[373980178,1753168237283,-541.74,0.00017255,2]
[373980180,1753168237294,-2531.13,0.00017255,2]
[373980182,1753168237305,-896.2,0.00017256,2]
[373980184,1753168237316,-460.0,0.00017256,2]
[373980186,1753168237327,-243.63019479,0.00017338,2]
[373980188,1753168237338,-502.16496801,0.00017376,2]
[373980190,1753168237349,-5258.50588317,0.0001743,2]
[373980192,1753168237359,-500.0,0.00017482,2]
[373980194,1753168237370,-474.91430361,0.00017521,2]
[373980196,1753168237380,-502.15053651,0.00017521,2]
[373980198,1753168237392,-1616.13,0.00017523,2]
[373980200,1753168237403,-460.0,0.00017523,2]
[373980202,1753168237413,-460.0,0.00017523,2]
[373980205,1753168237424,-460.0,0.00017523,2]
[373980207,1753168237434,-1262.31,0.00017523,2]
[373980209,1753168237445,-460.0,0.00017523,2]
[373980211,1753168237458,-460.0,0.00017523,2]
[373980213,1753168237469,-514.74,0.00017523,2]
[373980215,1753168237480,-460.0,0.00017523,2]
[373980217,1753168237491,-460.0,0.00017523,2]
[373980219,1753168237503,-460.0,0.00017523,2]
[373980221,1753168237514,-473.09714988,0.00017523,2]
[373980223,1753168237527,-460.0,0.00017523,2]
[373980239,1753168237686,-460.0,0.00017523,2]
[373980240,1753168237698,-858.13,0.00017523,2]
[373980241,1753168237708,-460.0,0.00017523,2]
[373980242,1753168237717,-460.0,0.00017524,2]
[373980243,1753168237726,-460.0,0.00017524,2]
[373980244,1753168237735,-460.0,0.00017524,2]
[373980245,1753168237745,-460.0,0.00017524,2]
[373980246,1753168237754,-460.0,0.00017524,2]
[373980247,1753168237764,-460.0,0.00017524,2]
[373980248,1753168237773,-460.0,0.00017524,2]
[373980249,1753168237782,-460.0,0.00017524,2]
[373980250,1753168237791,-460.0,0.00017524,2]
[373980251,1753168237801,-460.0,0.00017524,2]
[373980253,1753168237810,-460.0,0.00017524,2]
[373980254,1753168237819,-460.0,0.00017524,2]
[373980255,1753168237828,-460.0,0.00017524,2]
[373980256,1753168237837,-460.0,0.00017524,2]
[373980257,1753168237846,-460.0,0.00017524,2]
[373980258,1753168237855,-460.0,0.00017524,2]
[373980259,1753168237864,-460.0,0.00017524,2]
[373980260,1753168237873,-460.0,0.00017524,2]
[373980261,1753168237882,-460.0,0.00017524,2]
[373980262,1753168237891,-555.34,0.00017524,2]
[373980263,1753168237900,-314.44584627,0.00017524,2]
[373980264,1753168237909,-460.0,0.00017524,2]
[373980266,1753168237918,-460.0,0.00017524,2]
[373980267,1753168237928,-460.0,0.00017525,2]
[373980268,1753168237937,-460.0,0.00017525,2]
[373980269,1753168237948,-460.0,0.00017525,2]
[373980270,1753168237957,-460.0,0.00017525,2]
[373980271,1753168237967,-1197.65,0.00017525,2]
[373980272,1753168237976,-460.0,0.00017525,2]
[373980274,1753168237986,-460.0,0.00017525,2]
[373980276,1753168237996,-690.03,0.00017525,2]
[373980278,1753168238006,-460.0,0.00017525,2]
[373980280,1753168238015,-1070.51,0.00017525,2]
[373980281,1753168238024,-460.0,0.00017525,2]
[373980283,1753168238034,-460.0,0.00017525,2]
[373980285,1753168238045,-451.31,0.00017525,2]
[373980287,1753168238055,-460.0,0.00017525,2]
[373980289,1753168238064,-460.0,0.00017525,2]
[373980291,1753168238073,-744.08,0.00017525,2]
[373980293,1753168238083,-499.72,0.00017525,2]
[373980295,1753168238093,-460.0,0.00017525,2]
[373980297,1753168238102,-460.0,0.00017525,2]
[373980299,1753168238112,-209.0977,0.00017525,2]
[373980301,1753168238121,-460.0,0.00017525,2]
[373980303,1753168238131,-460.0,0.00017525,2]
[373980305,1753168238141,-841.45,0.00017525,2]
[373980307,1753168238150,-460.0,0.00017526,2]
[373980309,1753168238159,-328.35,0.00017526,2]
[373980311,1753168238169,-481.36376178,0.00017526,2]
[373980313,1753168238179,-460.0,0.00017526,2]
[373980315,1753168238188,-460.0,0.00017526,2]
[373980317,1753168238198,-191.09162583,0.00017526,2]
[373980319,1753168238208,-460.0,0.00017526,2]
[373980321,1753168238217,-460.0,0.00017527,2]
[373980323,1753168238227,-460.0,0.00017527,2]
[373980325,1753168238236,-460.0,0.00017527,2]
[373980327,1753168238245,-460.0,0.00017527,2]
[373980329,1753168238255,-1709.61,0.00017527,2]
[373980331,1753168238265,-652.05,0.00017528,2]
[373980333,1753168238275,-785.42,0.00017528,2]
[373980335,1753168238284,-460.0,0.00017528,2]
[373980337,1753168238294,-1666.11,0.00017528,2]
[373980339,1753168238304,-541.74,0.00017529,2]
[373980341,1753168238313,-2531.13,0.00017529,2]
[373980343,1753168238323,-896.2,0.0001753,2]
[373980345,1753168238333,-460.0,0.0001753,2]
[373980347,1753168238343,-500.0,0.00017554,2]
[373980349,1753168238352,-500.0,0.00017554,2]
[373980351,1753168238361,-525.02452038,0.00017554,2]
[373980353,1753168238372,-1616.13,0.00017797,2]
[373980355,1753168238391,-460.0,0.00017797,2]
[373980357,1753168238401,-465.79214898,0.00017797,2]
[373980359,1753168238410,-460.0,0.00017797,2]
[373980361,1753168238420,-1262.31,0.00017797,2]
[373980363,1753168238430,-460.0,0.00017797,2]
[373980365,1753168238439,-460.0,0.00017797,2]
[373980367,1753168238453,-514.74,0.00017797,2]
[373980369,1753168238463,-155.0,0.00017797,2]
[373980371,1753168238472,-460.0,0.00017797,2]
[373980373,1753168238482,-460.0,0.00017797,2]
[373980375,1753168238491,-460.0,0.00017797,2]
[373980377,1753168238501,-460.0,0.00017797,2]
[373980378,1753168238510,-460.0,0.00017797,2]
[373980380,1753168238519,-858.13,0.00017797,2]
[373980383,1753168238533,-460.0,0.00017797,2]
[373980384,1753168238543,-460.0,0.00017798,2]
[373980386,1753168238552,-164.31,0.00017798,2]
[373980388,1753168238563,-460.0,0.00017798,2]
[373980390,1753168238573,-460.0,0.00017798,2]
[373980392,1753168238583,-460.0,0.00017798,2]
[373980394,1753168238592,-460.0,0.00017798,2]
[373980396,1753168238602,-460.0,0.00017798,2]
[373980398,1753168238612,-460.0,0.00017798,2]
[373980400,1753168238623,-460.0,0.00017798,2]
[373980402,1753168238633,-460.0,0.00017798,2]
[373980404,1753168238643,-460.0,0.00017798,2]
[373980406,1753168238654,-460.0,0.00017798,2]
[373980409,1753168238664,-460.0,0.00017798,2]
[373980410,1753168238673,-460.0,0.00017798,2]
[373980412,1753168238682,-460.0,0.00017798,2]
[373980414,1753168238695,-460.0,0.00017798,2]
[373980416,1753168238705,-460.0,0.00017798,2]
[373980418,1753168238715,-460.0,0.00017798,2]
[373980421,1753168238725,-555.34,0.00017798,2]
[373980423,1753168238735,-460.0,0.00017798,2]
[373980424,1753168238744,-460.0,0.00017798,2]
[373980426,1753168238754,-460.0,0.00017799,2]
[373980429,1753168238766,-481.98,0.00017799,2]
[373980431,1753168238777,-1197.65,0.00017799,2]
[373980433,1753168238786,-460.0,0.00017799,2]
[373980435,1753168238795,-460.0,0.00017799,2]
[373980437,1753168238805,-690.03,0.00017799,2]
[373980439,1753168238814,-460.0,0.00017799,2]
[373980440,1753168238823,-1070.51,0.00017799,2]
[373980442,1753168238832,-460.0,0.00017799,2]
[373980444,1753168238841,-460.0,0.00017799,2]
[373980446,1753168238850,-460.0,0.00017799,2]
[373980448,1753168238860,-460.0,0.00017799,2]
[373980450,1753168238870,-744.08,0.00017799,2]
[373980452,1753168238880,-499.72,0.00017799,2]
[373980454,1753168238889,-460.0,0.00017799,2]
[373980456,1753168238899,-460.0,0.00017799,2]
[373980458,1753168238908,-460.0,0.00017799,2]
[373980460,1753168238917,-460.0,0.00017799,2]
[373980462,1753168238926,-841.45,0.00017799,2]
[373980464,1753168238936,-460.0,0.000178,2]
[373980466,1753168238945,-460.0,0.000178,2]
[373980468,1753168238956,-460.0,0.000178,2]
[373980470,1753168238965,-460.0,0.00017801,2]
[373980472,1753168238974,-460.0,0.00017801,2]
[373980474,1753168238984,-460.0,0.00017801,2]
[373980476,1753168238993,-460.0,0.00017801,2]
[373980478,1753168239003,-1709.61,0.00017801,2]
[373980480,1753168239015,-652.05,0.00017802,2]
[373980483,1753168239025,-785.42,0.00017802,2]
[373980485,1753168239035,-460.0,0.00017802,2]
[373980487,1753168239044,-1666.11,0.00017802,2]
[373980489,1753168239054,-541.74,0.00017803,2]
[373980490,1753168239063,-2531.13,0.00017803,2]
[373980492,1753168239072,-896.2,0.00017804,2]
[373980494,1753168239081,-240.51184596,0.00017804,2]
[373980496,1753168239091,-1213.28808592,0.000179,2]
[373980498,1753168239100,-500.0,0.0001803,2]
[373980500,1753168239109,-160.0,0.00018057,2]
[373980502,1753168239118,-526.07605158,0.00018057,2]
[373980504,1753168239127,-160.0,0.00018057,2]
[373980506,1753168239137,-214.6393183,0.00018057,2]
[373980508,1753168239146,-231.06963584,0.00018057,2]
[373980510,1753168239155,-12619.94447631,0.00018057,2]
[373980512,1753168239164,-839.90542673,0.00018057,2]
[373980514,1753168239174,-215.80012421,0.00018057,2]
[373980516,1753168239184,-160.0,0.00018057,2]
[373980518,1753168239194,-160.0,0.00018057,2]
[373980520,1753168239205,-476.60259688,0.00018058,2]
[373980523,1753168239216,-848.90222452,0.00018071,2]
[373980534,1753168239315,-767.22777548,0.00018071,2]
[373980536,1753168239325,-460.0,0.00018071,2]
[373980538,1753168239335,-460.0,0.00018071,2]
[373980540,1753168239345,-1262.31,0.00018071,2]
[373980542,1753168239354,-460.0,0.00018071,2]
[373980544,1753168239364,-514.74,0.00018071,2]
[373980546,1753168239373,-460.0,0.00018071,2]
[373980548,1753168239383,-460.0,0.00018071,2]
[373980550,1753168239393,-460.0,0.00018071,2]
[373980552,1753168239408,-460.0,0.00018071,2]
[373980554,1753168239418,-858.13,0.00018071,2]
[373980556,1753168239428,-460.0,0.00018071,2]
[373980558,1753168239438,-460.0,0.00018072,2]
[373980560,1753168239448,-460.0,0.00018072,2]
[373980562,1753168239458,-291.9309046,0.00018072,2]
[373980564,1753168239467,-460.0,0.00018072,2]
[373980566,1753168239477,-460.0,0.00018072,2]
[373980568,1753168239487,-460.0,0.00018072,2]
[373980570,1753168239496,-460.0,0.00018072,2]
[373980572,1753168239506,-460.0,0.00018072,2]
[373980574,1753168239515,-460.0,0.00018072,2]
[373980576,1753168239525,-460.0,0.00018072,2]
[373980578,1753168239537,-460.0,0.00018072,2]
[373980579,1753168239547,-460.0,0.00018072,2]
[373980582,1753168239556,-460.0,0.00018072,2]
[373980584,1753168239566,-460.0,0.00018072,2]
[373980586,1753168239577,-460.0,0.00018072,2]
[373980587,1753168239587,-460.0,0.00018072,2]
[373980589,1753168239597,-460.0,0.00018072,2]
[373980592,1753168239608,-555.34,0.00018072,2]
[373980593,1753168239618,-460.0,0.00018072,2]
[373980595,1753168239629,-460.0,0.00018072,2]
[373980598,1753168239639,-460.0,0.00018073,2]
[373980600,1753168239649,-1197.65,0.00018073,2]
[373980601,1753168239659,-460.0,0.00018073,2]
[373980603,1753168239669,-460.0,0.00018073,2]
[373980605,1753168239678,-690.03,0.00018073,2]
[373980607,1753168239688,-193.62361746,0.00018073,2]
[373980609,1753168239700,-1070.51,0.00018073,2]
[373980611,1753168239709,-460.0,0.00018073,2]
[373980613,1753168239718,-460.0,0.00018073,2]
[373980615,1753168239727,-460.0,0.00018073,2]
[373980617,1753168239738,-460.0,0.00018073,2]
[373980619,1753168239748,-744.08,0.00018073,2]
[373980621,1753168239757,-499.72,0.00018073,2]
[373980623,1753168239767,-460.0,0.00018073,2]
[373980625,1753168239776,-460.0,0.00018073,2]